Cogmind - Beta 14 @@@ ROGUE MODE // 2024.12.02 @ 03:12:11 Player: akira Result: Destroyed by Autobeam Turret with Autobeam Performance ------------- Evolutions (0) 0 Regions Visited (2) 400 Robots Destroyed (16) 80 Value Destroyed (339) 339 Prototype IDs (0) 0 Alien Tech Used (0) 0 Bonus (0) 0 TOTAL SCORE: 819 Bonus ------- None Cogmind --------- Core Integrity 0/250 Matter 174/300 Energy 95/100 System Corruption 0% Temperature Cool (12) Movement Treading (160) Location -10/Subcaves Parts ------- > --- POWER (1) -------- (None) > --- PROPULSION (2) --- Light Treads Light Treads > --- UTILITY (2) ------ Small Storage Unit > --- WEAPON (2) ------- Light Assault Rifle Grenade Launcher > --- INVENTORY (8) ---- Ion Engine Ion Engine Light Treads Aluminum Leg Transport Network Coupler Light Assault Rifle Grenade Launcher Peak State ------------ > --- POWER ------------ Light Ion Engine > --- PROPULSION ------- Aluminum Leg Aluminum Leg > --- UTILITY ---------- Small Storage Unit Improved Terrain Scanner > --- WEAPON ----------- Light Assault Rifle Light Assault Rifle > --- INVENTORY -------- Ion Engine Light Treads Light Treads Wheel Compact Wheel EM Pulse Gun [Rating: 9] Favorites ----------- Power Light Ion Engine Engine Light Ion Engine Propulsion Aluminum Leg Treads Light Treads Leg Aluminum Leg Utility Small Storage Unit Device Improved Terrain Scanner Storage Small Storage Unit Weapon Light Assault Rifle Ballistic Gun Light Assault Rifle Launcher Grenade Launcher Build | -11 -10 -10 ------- Run | Yrd Mat Sub Slots Evolved . | . . . Power . | . . . Propulsion . | . . . Utility . | . . . Weapon . | . . . Parts Attached 16 | 6 3 7 Power 1 | 1 . . Engine 1 | 1 . . Core . | . . . Reactor . | . . . Propulsion 4 | 2 . 2 Treads 2 | . . 2 Leg 2 | 2 . . Wheel . | . . . Hover . | . . . Flight . | . . . Utility 2 | 1 1 . Device 1 | . 1 . Storage 1 | 1 . . Processor . | . . . Hackware . | . . . Protection . | . . . Artifact . | . . . Weapon 9 | 2 2 5 Energy Gun . | . . . Energy Cannon . | . . . Ballistic Gun 5 | 2 1 2 Ballistic Cannon . | . . . Launcher 4 | . 1 3 Special Weapon . | . . . Impact Weapon . | . . . Slashing Weapon . | . . . Piercing Weapon . | . . . Special Melee Weapon . | . . . Unidentified Prototypes . | . . . Parts Lost 3 | . . 3 Power 1 | . . 1 Propulsion 1 | . . 1 Utility 1 | . . 1 Weapon . | . . . Highest Loss Streak 2 | . . 2 To Critical Strikes . | . . . Average Slot Usage (%) 99 | . 100 98 Engine 13 | . 14 13 Treads 1 | . . 3 Leg 26 | . 28 23 Device 13 | . 14 13 Storage 14 | . 14 14 Ballistic Gun 27 | . 27 26 Peak Build Rating 9 | 6 9 9 Average Rating 8 | 5 9 8 On Entrance 5 | . 6 9 Naked Turns . | . . . Heaviest Build 15 | 10 11 15 Greatest Support 40 | 20 20 40 Greatest Overweight (x) 1 | . . 1 Average Overweight (x) . | . . . Largest Inventory Capacity 8 | 8 8 8 Average Capacity 7 | 7 8 8 Most Carried 8 | 7 8 8 Average Carried 6 | 3 6 7 Final Capacity 8 | 8 8 8 Final Carried 8 | 7 8 7 Class Distribution -------------------- 100% | Mutant Dominant Class ---------------- Mutant | -10/Materials Mutant | -10/Subcaves Resources | -11 -10 -10 ----------- Run | Yrd Mat Sub Matter Collected 460 | 284 138 38 Remotely . | . . . Salvage Created 364 | 77 196 91 Parts 25 | 3 14 8 Haulers Intercepted 1 | . 1 . Recyclers Shooed 1 | . 1 . Parts Field Recycled . | . . . Retrieved Matter . | . . . Parts Self-Destructed 5 | . . 5 Prevented . | . . . Kills | -11 -10 -10 ------- Run | Yrd Mat Sub Combat Hostiles Destroyed 11 | . 5 6 Guns 5 | . 2 3 AOE 6 | . 3 3 Classes Destroyed 8 | 2 3 3 Tunneler 1 | 1 . . Hauler 1 | . 1 . Recycler 1 | 1 . . Turret 1 | . . 1 Watcher 1 | . 1 . Swarmer 5 | . . 5 Grunt 5 | . 5 . Sentry 1 | . . 1 Best Kill Streak 5 | 1 5 5 Combat Bots Only 4 | . 4 4 Max Kills in Single Turn 2 | 1 1 2 Gunslinging . | . . . Exploded 2 | . 1 2 Melee . | . . . Uniques/NPCs Destroyed . | . . . Combat | -11 -10 -10 -------- Run | Yrd Mat Sub Hostile Shots Fired 134 | . 31 103 Missed 48 | . 7 41 Damage Taken 779 | . 297 482 Core 251 | . 92 159 Absorbed by Shields . | . . . Core Remaining (%) 100 | 100 . . Volleys Fired 58 | 12 30 16 Largest 2 | 2 2 2 Hottest 60 | 40 40 60 Shots Fired 103 | 24 54 25 Gun 88 | 24 48 16 Cannon . | . . . Launcher 15 | . 6 9 Special . | . . . Kinetic 88 | 24 48 16 Thermal . | . . . Explosive 15 | . 6 9 Electromagnetic . | . . . Robot Hit Streak 8 | 8 8 7 Robot Miss Streak 3 | 3 2 1 Penetration Max . | . . . Secondary Targets . | . . . Shots Hit Robots 67 | 17 37 13 Core Hits 37 | 5 19 13 Critical Kills . | . . . Critical Parts Destroyed . | . . . Critical Strikes . | . . . Melee Attacks . | . . . Impact . | . . . Slashing . | . . . Piercing . | . . . Sneak Attacks . | . . . Combat Hostiles . | . . . Follow-up Attacks . | . . . Damage Inflicted 1198 | 130 623 445 Guns 516 | 130 289 97 Cannons . | . . . Explosions 682 | . 334 348 Melee . | . . . Ramming . | . . . Kinetic 516 | 130 289 97 Thermal . | . . . Explosive 682 | . 334 348 Electromagnetic . | . . . Impact . | . . . Slashing . | . . . Piercing . | . . . Highest Corruption . | . . . Average Corruption . | . . . Corruption Purged . | . . . Corruption Blocked . | . . . Overload Shots . | . . . Overflow Damage 32 | . . 32 Projectiles . | . . . Explosions 32 | . . 32 Melee . | . . . Knockbacks . | . . . Impact . | . . . Kinetic . | . . . Secondary . | . . . Self-Inflicted Damage 40 | . . 40 Shots 1 | . . 1 Rammed . | . . . Targets Rammed . | . . . Kicked . | . . . Crushed . | . . . Highest Temperature 30 | . 30 4 Average Temperature 10 | . 10 4 Received Heat Transfer 450 | . 162 288 Siege Activations . | . . . Robots Corrupted . | . . . Combat Hostiles . | . . . Parts Fried . | . . . Impact Corruptions . | . . . Robots Melted . | . . . Combat Hostiles . | . . . Parts Melted . | . . . Heat Transferred . | . . . Parts Sabotaged . | . . . Parts Stolen . | . . . Parts Stripped . | . . . Power Chain Reactions . | . . . Alert | -11 -10 -10 ------- Run | Yrd Mat Sub Peak Influence 156 | 10 156 . Initial 6 | . 6 . Average 24 | 2 27 . Maximum Alert Level . | . . . Low Security (%) 100 | 100 100 . Level 1 . | . . . Level 2 . | . . . Level 3 . | . . . Level 4 . | . . . Level 5 . | . . . High Security . | . . . Max Security . | . . . Squads Dispatched 1 | . 1 . Investigation 1 | . 1 . Extermination . | . . . Reinforcement . | . . . Assault . | . . . Garrison . | . . . Intercept . | . . . Searches Triggered . | . . . Construction Impeded . | . . . Haulers Reinforced . | . . . Active Scanning Responses . | . . . Cargo Convoy Interrupts . | . . . Stealth | -11 -10 -10 --------- Run | Yrd Mat Sub Distress Signals 1 | . 1 . Communications Jammed . | . . . Distress Signals . | . . . Times Spotted 16 | . 8 8 Peak Tracking Total 6 | . 4 6 Tactical Retreats . | . . . Traps | -11 -10 -10 ------- Run | Yrd Mat Sub Traps Triggered 1 | . 1 . Indirectly . | . . . Trap Hack Attempts . | . . . Triggered . | . . . Disarmed . | . . . Reprogrammed . | . . . Reused . | . . . Traps Extracted . | . . . Installed . | . . . Triggered . | . . . Machines | -11 -10 -10 ---------- Run | Yrd Mat Sub Machines Disabled 3 | . . 3 Max in Single Turn 3 | . . 3 Machines Repaired . | . . . Machines Dismantled . | . . . Machines Sabotaged . | . . . Overloaded Fab Kills . | . . . Hacking | -11 -10 -10 --------- Run | Yrd Mat Sub Machines Accessed . | . . . Terminals . | . . . Fabricators . | . . . Repair Stations . | . . . Recycling Units . | . . . Scanalyzers . | . . . Garrison Access . | . . . Total Hacks . | . . . Successful . | . . . Failed . | . . . Catastrophic . | . . . Database Lockouts . | . . . Manual . | . . . Terminals . | . . . Fabricators . | . . . Repair Stations . | . . . Recycling Units . | . . . Scanalyzers . | . . . Garrison Access . | . . . Terminal Hacks . | . . . Fabricator Hacks . | . . . Repair Station Hacks . | . . . Recycling Unit Hacks . | . . . Scanalyzer . | . . . Garrison Access Hacks . | . . . Unauthorized Hacks . | . . . Terminals . | . . . Fabricators . | . . . Repair Stations . | . . . Recycling Units . | . . . Scanalyzers . | . . . Garrison Access . | . . . Data Cores Recovered . | . . . Used . | . . . Hacking Detections . | . . . Full Trace Events . | . . . Feedback Events . | . . . Feedback Blocked . | . . . Robot Schematics Acquired . | . . . Robots Built . | . . . Authchips . | . . . Time . | . . . Total Robot Build Rating . | . . . Part Schematics Acquired . | . . . Parts Built . | . . . Authchips . | . . . Time . | . . . Total Part Build Rating . | . . . Parts Repaired . | . . . Time . | . . . Parts Recycled . | . . . Recycled Matter . | . . . Retrieved Matter . | . . . Retrieved Components . | . . . Parts Scanalyzed . | . . . Part Schematics Acquired . | . . . Parts Damaged . | . . . Bothacking | -11 -10 -10 ------------ Run | Yrd Mat Sub Used RIF Installer . | . . . Robots Hacked . | . . . Non-combat . | . . . Combat . | . . . Robot Hacks Applied . | . . . Relay Couplers Released . | . . . Fabnet Peak Effective % . | . . . Robots Rewired . | . . . Allies Hacked . | . . . Hacks Repelled . | . . . Allies | -11 -10 -10 -------- Run | Yrd Mat Sub Total Allies . | . . . Largest Group . | . . . Highest-Rated Group . | . . . Highest-Rated Ally . | . . . Total Orders . | . . . Ally Attacks . | . . . Total Damage . | . . . Kills . | . . . Allies Corrupted . | . . . Allies Melted . | . . . Intel | -11 -10 -10 ------- Run | Yrd Mat Sub Robot Analysis Total . | . . . Derelict Logs Recovered . | . . . Drone Launches . | . . . Drone Recoveries . | . . . Exploration | -11 -10 -10 ------------- Run | Yrd Mat Sub Turns Passed 1461 | 117 910 434 Spaces Moved 451 | 64 287 100 Core 9 | 9 . . Treads 7 | . . 7 Legs 435 | 55 287 93 Wheels . | . . . Hover . | . . . Flight . | . . . Fastest Speed 50 | 50 120 120 Average Speed 120 | 110 120 129 Slowest Speed 190 | 120 120 190 Overloaded Moves . | . . . Propulsion Burnouts . | . . . Robots Hopped . | . . . Cave-ins Triggered . | . . . Exploration Rate (%) 20 | 5 44 13 Regions Visited 2 Branch Regions 1 Pre-discovered Areas . | . . . Known Exits Taken . | . . . Unknown Exits Taken 2 | 1 1 . Scrap Searched . | . . . Spaces Dug . | . . . Terrain Destroyed 54 | . 25 29 Melee . | . . . Projectile . | . . . AOE 54 | . 25 29 Terrain Rammed . | . . . Walls Destroyed . | . . . Machines Disabled . | . . . Actions | -11 -10 -10 --------- Run | Yrd Mat Sub Total 1278 | 88 809 381 Wait 737 | . 480 257 Move 449 | 63 286 100 Hop . | . . . Pick Up 13 | 7 6 . Fast Attach 7 | 6 . 1 Attach 2 | . 1 1 Detach . | . . . Swap 7 | . 2 5 Drop 5 | . 4 1 Fire 58 | 12 30 16 Melee . | . . . Ram . | . . . Kick . | . . . Crush . | . . . Escape Stasis . | . . . Rewire . | . . . Trap . | . . . Miscellaneous . | . . . Route ------- -11/Scrapyard -10/Materials (discovered 2 exits: [*Mat] / [*Sub]) -10/Subcaves (discovered 1 exit: [*Rec]) History --------- Turn | Location | Event 2 | -11/Scrapyard | Discovered new exit (range 16) 118 | -11/Scrapyard | Entered Materials 310 | -10/Materials | Build established: Mutant 566 | -10/Materials | Discovered new exit (range 5) 887 | -10/Materials | Discovered new exit (range 16) 1028 | -10/Materials | Entered Subcaves 1428 | -10/Subcaves | Discovered new exit (range 16) 1429 | -10/Subcaves | Core integrity fell below 50% 1443 | -10/Subcaves | Core integrity fell below 20% 1462 | -10/Subcaves | Destroyed by Autobeam Turret with Autobeam Last Messages --------------- 01393_ Acquired 2 matter. 01394_ Heat Sink fries itself beyond repair. 01396_ Subatomizers dissect the Hvy. Assault Rifle. 01397_ Hvy. Assault Rifle fries itself beyond repair. 01397_ Dropped Lgt. Assault Rifle. 01398_ Acquired Lgt. Assault Rifle. 01399_ Acquired 10 matter. 01428_ EXIT=FOUND 01430_ S-10 Pest destroyed. 01434_ Subatomizers dissect the Lgt. Assault Rifle. 01434_ Destroyed Flight Unit. 01434_ S-10 Pest destroyed. 01442_ Flight Unit fries itself beyond repair. 01444_ Subatomizers dissect the Lgt. Assault Rifle. 01445_ Lgt. Ion Engine fries itself beyond repair. 01446_ Machine disabled. 01449_ Autobeam Turret destroyed. 01451_ The unstable cave ceiling collapses. 01452_ Lgt. Ion Engine destroyed. 01458_ Imp. Terrain Scanner destroyed. Map ----- +----------------------------------------------------+ | ??## #???? ##?#?#????????????????????????? | | ???# #???# #????????????????????????????? | | ???## #### #????????????????????????????? | | ? ? ## ## #??????????????????????????????? | | ????## #????#?????????????????????????? | | ???## #???#?#????????????????????????? | | ???# ##??????????????????????????????? | | ??# ## #???????????????????????????????? | | ???# # #???????????????????????????????? | | ?? #"& ###???????????????????????????????? | | " " " #???????#???#?????????????????????? | | # "" ##?????## ### ##???????????????????? | | & ###?????# < #???????????????????? | | #### #??????#" "?#?????????????????? | | ###???## #??????# "???????????????????? | | ?#?????## ###??#?# t "#??????????????????? | | ?????### #?#??# ???????????????????? | | #???## ###????# ????????????????????? | | #### ##??????? ??????????#?????????? | | #??#????## #????????????????????? | | #?#?????## ##???????????????????? | | ##?#?##???## #?#????#????????????? | | #####??#??# #???????????????????? | | ## # # ##????# ####????????????????? | | #?# #####?# # ######???????????? | | ???# % ### @ #???????????? | | ?????# # ## ## #??????????? | | ??#??## ## # u #????????? | | ??????# % ????????? | | ??????## ##### ?????????? | | ???????#### ##### #?#???? #?????????? | | ??????????###???## ##### ##???#?????????????? | | ?????????????????####???# #??????????????????? | | ????????????????????????#######??????????????????? | | ???????????????????????????#?????????????????????? | | ??????????????#??????#???????????????????????????? | | ???????????????????#?????????????????????????????? | | ??????????##??#?#????????#???????????????????????? | | ?????????????????????#???????????????????????????? | | ??????????????????????????????#??????????????????? | | ??????? ???????????????#????#??#?????????????????? | | ????????????????#????????????????????????????????? | | ?????????????????????????#???????????????????????? | | ?????????????????????????????????????????????????? | | ?????????????????????????????????????????????????? | | ?????????????????????????????????????????????????? | | ?????????????????????????????????????????????????? | | ?????????????????????????????????????????????????? | | ?????????????????????????????????????????????????? | | ?????????????????????????????????????????????????? | +----------------------------------------------------+ Best States ------------- Heat Dissipation 25 Energy Generation 10 Energy Capacity 125 Matter Stores 300 Matter Capacity 300 Sight Range 16 Terrain Scan Range 16 Terrain Scan Density 10 Evasion (%) 55 Recoil Reduction 2 Item Schematics ----------------- None Robot Schematics ------------------ None Fabricated ------------ Nothing Alien Tech Used ----------------- None Achievements -------------- None Challenges ------------ None Game ------ Seed PiercingSurgeAutohacker Manual? 0 Play Time 00:07:44 Cumulative 86.4 hours Start 2024.12.02 @ 03:06:24 End 2024.12.02 @ 03:12:11 Sessions 1 Manual Loads 0 Difficulty Rogue Special Mode None Game No. 93 Rogue 93 Adventurer 0 Explorer 0 Win Type - Total 0 Types 0/0/0/0/0/0/0/0/0 Lore% 12 Gallery% 37 Achievement% 33 Wizard Run 0 Options --------- Layout 2 ASCII 0 Keyboard 0 Movement Mouse Keybinds 0 Fullscreen 2 Font 16/SmallcapsGlow Map View 55x47 Zoom Use 0% Tactical HUD 1 Map Filters NONE Filters NONE Steam 1 RUN: baba3461-32ce-4cfb-b52c-fb2ab69f3d51